lending/lending_fUSD_20240605
["ID","MTS","AMOUNT","RATE_DAILY","PERIOD"]
[328615283,1717615637137,-947.22670795,0.00022499,2]
[328615284,1717615637157,-3091.02279623,0.00022499,2]
[328615285,1717615637178,-161.84,0.00022746,2]
[328615286,1717615637199,-596.62,0.00023996,2]
[328615287,1717615637219,-172.58,0.00024384,2]
[328615288,1717615637239,-4346.7,0.00024384,2]
[328615289,1717615637259,-1723.61,0.00024384,2]
[328615290,1717615637280,-2680.25,0.0002499,2]
[328615291,1717615637315,-2680.25,0.0002499,2]
[328615292,1717615637336,-2680.25,0.0002499,2]
[328615293,1717615637360,-2680.25,0.0002499,2]
[328615294,1717615637382,-910.90902561,0.0002499,2]
[328615295,1717615641207,250.0,0.000247,7]
[328615296,1717615643137,-10514.42134851,0.00022399,2]
[328615297,1717615752147,-8415.28893931,0.00017259,2]
[328615305,1717615755280,-226.57668191,0.00022388,2]
[328615306,1717615755308,-776.95,0.00022389,3]
[328615307,1717615755335,-149340.64280565,0.00022399,2]
[328615308,1717615758743,-40728.463,0.00022399,2]
[328615309,1717615760193,-72899.129,0.00022399,2]
[328615310,1717615765262,-110663.73,0.00022399,2]
[328615311,1717615769124,-3340.76463975,0.00022399,2]
[328615312,1717615769391,-2913.9908,0.00022399,2]
[328615313,1717615770114,-23409.79947183,0.00022399,2]
[328615315,1717615790531,33927.01148069,0.00017259,2]
[328615316,1717615831944,-426.22730745,0.00017259,2]
[328615325,1717615832173,-9639.44449427,0.00017259,2]
[328615326,1717615832184,-532.79092175,0.00017259,2]
[328615327,1717615832200,-1442.10129737,0.00017259,2]
[328615328,1717615832211,-1039.56185241,0.00017259,2]
[328615329,1717615832222,-2130.26814,0.00017259,2]
[328615330,1717615832394,-597.65331933,0.00017259,2]
[328615332,1717615832406,-24434.72714059,0.00017259,2]
[328615334,1717615832418,-3627.98174025,0.00017259,2]
[328615336,1717615832430,-1057.3,0.00017259,2]
[328615352,1717615832753,-4e-08,0.00017259,2]
[328615363,1717615837908,-11086.24012462,0.00017259,2]
[328615366,1717615838169,-1997.78813979,0.00017259,2]
[328615367,1717615838180,-1259.50084397,0.00017259,2]
[328615368,1717615838192,-1127.106765,0.00017259,2]
[328615372,1717615838459,-10291.30589088,0.00017259,2]
[328615377,1717615840972,-128002.3561243,0.00017259,2]
[328615382,1717615841100,-269.976,0.00017259,2]
[328615383,1717615841142,-315719.37256433,0.00017259,2]
[328615384,1717615841151,-150.0,0.00017259,2]
[328615385,1717615841161,-150.0,0.00017259,2]
[328615386,1717615841170,-150.0,0.00017259,2]
[328615387,1717615841180,-150.0,0.00017259,2]
[328615388,1717615841189,-219.84992135,0.00017259,2]
[328615389,1717615841199,-945.9503,0.00017259,2]
[328615390,1717615841209,-1313.84082624,0.00017259,2]
[328615391,1717615841219,-226.57668191,0.00021919,2]
[328615392,1717615841228,-353.87,0.0002192,2]
[328615393,1717615841242,-353.87,0.0002192,2]
[328615394,1717615841251,-353.87,0.0002192,2]
[328615395,1717615841260,-353.87,0.0002192,2]
[328615396,1717615841269,-353.87,0.0002192,2]
[328615397,1717615841279,-155.48,0.00024384,2]
[328615398,1717615841288,-625.70433105,0.00024689,2]
[328615399,1717615841297,-256.02693997,0.0002469,2]
[328615400,1717615841307,-224.99,0.0002469,5]
[328615401,1717615841316,-156.05020702,0.0002489,2]
[328615402,1717615841327,-499.99,0.0002499,2]
[328615403,1717615841336,-150.99,0.0002499,2]
[328615404,1717615841346,-1202.87340608,0.00025,2]
[328615405,1717615841355,-256.02693997,0.00025434,2]
[328615406,1717615841365,-205.51,0.00025914,2]
[328615407,1717615841378,-256.02693997,0.00026179,2]
[328615408,1717615841387,-596.62,0.0002626,2]
[328615409,1717615841396,-250.0,0.00026699,2]
[328615410,1717615841407,-256.02693997,0.00026923,2]
[328615411,1717615841417,-2010.60105363,0.000272,2]
[328615412,1717615841427,-516.27731736,0.00027397,4]
[328615413,1717615841437,-256.02693997,0.00027667,2]
[328615414,1717615841447,-150.0,0.00027884,2]
[328615415,1717615841456,-1000.0,0.00027949,2]
[328615416,1717615841466,-8415.28893931,0.00028397,2]
[328615417,1717615841476,-531.5763,0.00028398,2]
[328615418,1717615841485,-256.02693997,0.00028411,2]
[328615419,1717615841495,-596.62,0.00028524,2]
[328615420,1717615841505,-164.73,0.00028579,2]
[328615421,1717615841514,-260.2445415,0.000287,2]
[328615422,1717615841524,-9839.0,0.000287,5]
[328615423,1717615841534,-500.0,0.000288,7]
[328615424,1717615841544,-15780.61643685,0.0002909,2]
[328615425,1717615841554,-150.0,0.00029096,4]
[328615426,1717615841563,-256.02693997,0.00029156,2]
[328615427,1717615841572,-1011.3,0.000295,2]
[328615428,1717615841581,-150.0,0.000295,2]
[328615429,1717615841590,-200.0,0.000296,2]
[328615430,1717615841599,-382.01150973,0.0002966,2]
[328615431,1717615841609,-2100.0,0.00029684,2]
[328615432,1717615841620,-359.4382,0.000297,2]
[328615433,1717615841632,-160.0,0.00029791,2]
[328615434,1717615841642,-160.0,0.000298,2]
[328615435,1717615841652,-1011.3,0.000298,2]
[328615436,1717615841661,-306.64,0.000298,2]
[328615437,1717615841671,-150.93,0.00029808,30]
[328615438,1717615841680,-486.94805765,0.00029863,2]
[328615439,1717615841690,-155.03090269,0.00029889,2]
[328615440,1717615841700,-156.15863377,0.00029891,2]
[328615441,1717615841709,-1449.7921,0.000299,2]
[328615442,1717615841719,-8045.40502423,0.000299,2]
[328615443,1717615841729,-7249.6144,0.000299,2]
[328615444,1717615841738,-422.60126892,0.000299,2]
[328615445,1717615841748,-5800.0,0.000299,2]
[328615446,1717615841758,-166.51202761,0.000299,2]
[328615447,1717615841768,-10598.85487187,0.000299,3]
[328615448,1717615841778,-3574.99007987,0.000299,2]
[328615449,1717615841787,-597.09605623,0.000299,2]
[328615450,1717615841797,-168.2457248,0.000299,2]
[328615451,1717615841807,-156.05020701,0.000299,15]
[328615452,1717615841817,-157.12448071,0.000299,2]
[328615453,1717615841826,-256.02693997,0.000299,2]
[328615454,1717615841836,-150.5,0.0002998,15]
[328615455,1717615841846,-151.47,0.0002999,2]
[328615456,1717615841856,-280.23,0.0002999,15]
[328615457,1717615841865,-150.5,0.0002999,15]
[328615458,1717615841875,-1236.1791023,0.0002999,2]
[328615459,1717615841885,-151.47,0.0002999,2]
[328615460,1717615841895,-151.47,0.0002999,2]
[328615461,1717615841904,-151.47,0.0002999,2]
[328615462,1717615841914,-151.47,0.0002999,2]
[328615463,1717615841925,-151.47,0.0002999,2]
[328615464,1717615841935,-151.47,0.0002999,2]
[328615465,1717615841944,-151.47,0.0002999,2]
[328615466,1717615841956,-151.47,0.0002999,2]
[328615467,1717615841965,-151.47,0.0002999,2]
[328615468,1717615841975,-151.47,0.0002999,2]
[328615469,1717615841985,-151.47,0.0002999,2]
[328615470,1717615841996,-151.47,0.0002999,2]
[328615471,1717615842006,-151.47,0.0002999,2]
[328615472,1717615842015,-151.47,0.0002999,2]
[328615473,1717615842026,-151.47,0.0002999,2]
[328615474,1717615842035,-151.47,0.0002999,2]
[328615475,1717615842048,-151.47,0.0002999,2]
[328615476,1717615842058,-151.47,0.0002999,2]
[328615477,1717615842068,-151.47,0.0002999,2]
[328615478,1717615842078,-151.47,0.0002999,2]
[328615479,1717615842087,-151.47,0.0002999,2]
[328615480,1717615842097,-151.47,0.0002999,2]
[328615481,1717615842106,-151.47,0.0002999,2]
[328615482,1717615842116,-151.47,0.0002999,2]
[328615483,1717615842127,-151.47,0.0002999,2]
[328615484,1717615842137,-151.47,0.0002999,2]
[328615485,1717615842147,-151.47,0.0002999,2]
[328615486,1717615842156,-151.47,0.0002999,2]
[328615487,1717615842166,-151.47,0.0002999,2]
[328615488,1717615842175,-151.47,0.0002999,2]
[328615489,1717615842185,-151.47,0.0002999,2]
[328615490,1717615842195,-151.47,0.0002999,2]
[328615491,1717615842205,-151.47,0.0002999,2]
[328615492,1717615842215,-151.47,0.0002999,2]
[328615493,1717615842225,-151.47,0.0002999,2]
[328615494,1717615842237,-151.47,0.0002999,2]
[328615495,1717615842247,-151.47,0.0002999,2]
[328615496,1717615842257,-151.47,0.0002999,2]
[328615497,1717615842267,-151.47,0.0002999,2]
[328615498,1717615842277,-151.47,0.0002999,2]
[328615499,1717615842287,-151.47,0.0002999,2]
[328615500,1717615842297,-151.47,0.0002999,2]
[328615501,1717615842307,-151.47,0.0002999,2]
[328615502,1717615842316,-151.47,0.0002999,2]
[328615503,1717615842327,-155.0,0.00029998,2]
[328615505,1717615842337,-296.512316,0.00029998,2]
[328615507,1717615842346,-4110.12630522,0.00029998,2]
[328615509,1717615842356,-156.89447603,0.00029998,2]
[328615510,1717615842365,-3350.10835774,0.00029998,2]
[328615511,1717615842376,-1252.23465962,0.00029998,2]
[328615512,1717615842385,-282.51105536,0.00029998,2]
[328615513,1717615842395,-596.81279154,0.00029998,2]
[328615514,1717615842404,-337.93145394,0.00029998,2]
[328615515,1717615842414,-789.46745938,0.00029998,2]
[328615516,1717615842423,-480.87424336,0.00029998,2]
[328615517,1717615842433,-223.48137929,0.00029998,2]
[328615518,1717615842443,-2385.42283036,0.00029998,2]
[328615519,1717615842452,-163.14472256,0.00029998,2]
[328615520,1717615842462,-158.2221463,0.00029998,2]
[328615521,1717615842471,-1900.16906214,0.00029998,2]
[328615522,1717615842480,-307.19231422,0.00029998,2]
[328615523,1717615842490,-155.0,0.00029998,2]
[328615524,1717615842500,-785.72909026,0.00029998,2]
[328615525,1717615842509,-1246.52348474,0.00029998,2]
[328615526,1717615842518,-325.73352634,0.00029999,2]
[328615527,1717615842528,-8421.3144899,0.00029999,2]
[328615528,1717615842537,-252.72064751,0.00029999,2]
[328615529,1717615842547,-150.01,0.00029999,2]
[328615530,1717615842557,-1141.71144619,0.00029999,15]
[328615531,1717615842566,-518.69695978,0.00029999,2]
[328615532,1717615842576,-500.0,0.00029999,2]
[328615533,1717615842585,-4000.0,0.00029999,2]
[328615534,1717615842595,-4000.0,0.00029999,2]
[328615535,1717615842604,-2525.1121,0.00029999,2]
[328615536,1717615842614,-500.0,0.00029999,4]
[328615537,1717615842623,-500.0,0.00029999,4]
[328615538,1717615842635,-500.0,0.00029999,4]
[328615539,1717615842644,-500.0,0.00029999,4]
[328615540,1717615842654,-500.0,0.00029999,4]
[328615541,1717615842663,-500.0,0.00029999,4]
[328615542,1717615842673,-500.0,0.00029999,4]
[328615543,1717615842683,-500.0,0.00029999,4]
[328615544,1717615842692,-500.0,0.00029999,4]
[328615545,1717615842702,-500.0,0.00029999,4]
[328615546,1717615842711,-500.0,0.00029999,4]
[328615547,1717615842720,-500.0,0.00029999,4]
[328615548,1717615842730,-530.36726919,0.00029999,4]
[328615549,1717615842739,-755.56,0.00029999,4]
[328615550,1717615842748,-755.56,0.00029999,4]
[328615551,1717615842759,-755.56,0.00029999,4]
[328615552,1717615842768,-755.56,0.00029999,4]
[328615553,1717615842778,-755.56,0.00029999,4]
[328615554,1717615842787,-755.56,0.00029999,4]
[328615555,1717615842796,-755.56,0.00029999,4]
[328615556,1717615842806,-755.56,0.00029999,4]
[328615557,1717615842815,-755.56,0.00029999,4]
[328615558,1717615842825,-755.56,0.00029999,4]
[328615559,1717615842835,-755.56,0.00029999,4]
[328615560,1717615842844,-755.56,0.00029999,4]
[328615561,1717615842854,-755.56,0.00029999,4]
[328615562,1717615842864,-755.56,0.00029999,4]
[328615563,1717615842874,-755.56,0.00029999,4]
[328615564,1717615842885,-755.56,0.00029999,4]
[328615565,1717615842895,-755.56,0.00029999,4]
[328615566,1717615842905,-755.56,0.00029999,4]
[328615567,1717615842915,-755.56,0.00029999,4]
[328615568,1717615842924,-755.56,0.00029999,4]
[328615569,1717615842935,-755.56,0.00029999,4]
[328615570,1717615842945,-755.56,0.00029999,4]
[328615571,1717615842956,-755.56,0.00029999,4]
[328615572,1717615842966,-500.0,0.00029999,4]
[328615573,1717615842976,-500.0,0.00029999,4]
[328615574,1717615842985,-500.0,0.00029999,4]
[328615575,1717615842995,-500.0,0.00029999,4]
[328615576,1717615843005,-500.0,0.00029999,4]
[328615577,1717615843015,-1434.71223576,0.0003,5]
[328615578,1717615843025,-77782.14109949,0.0003,13]
[328615579,1717615843040,-2253.62392482,0.0003,13]
[328615580,1717615843064,-155.0,0.00029807,2]
[328615581,1717615843074,-155.14292391,0.00029989,2]
[328615582,1717615843084,-155.14292391,0.0002999,2]
[328615583,1717615843093,-3945.44729321,0.0003,13]
[328615584,1717615843105,-1880.85,0.0003,13]
[328615585,1717615843468,-1688.03868691,0.0003,13]
[328615586,1717615843480,-1085.41299252,0.0003,13]
[328615587,1717615843492,-2592.10818477,0.0003,13]
[328615588,1717615843807,-38460.85465978,0.0003,13]
[328615589,1717615843819,-294.7724584,0.0003,13]
[328615601,1717615846271,-554.34634083,0.0003,13]
[328615602,1717615846283,-2013.8863175,0.0003,13]
[328615603,1717615846294,-1188.35,0.0003,13]
[328615604,1717615846420,-419.01889347,0.0003,13]
[328615605,1717615846460,-1492.78301136,0.0003,13]
[328615606,1717615846472,-522.93853237,0.0003,13]
[328615607,1717615846483,-959.175,0.0003,13]
[328615608,1717615846494,-7091.0,0.0003,13]
[328615609,1717616023590,27100.0,0.00014,2]
[328615610,1717616023619,1309566.79405817,0.00014,2]
[328615611,1717616034744,9895.10675878,9e-05,2]
[328615612,1717616040975,914.92479447,0.00025,30]
[328615613,1717616052476,299.56956562,0.00014,2]
[328615614,1717616055500,548608.71414704,0.00014,2]
[328615615,1717616058648,289.73525073,0.00014,2]
[328615616,1717616059203,4756.75335225,0.00014,2]
[328615617,1717616059858,180.5825281,0.00014,2]
[328615618,1717616068631,364.79448835,0.00014,2]
[328615619,1717616069492,344963.85624558,0.00014,2]
[328615620,1717616070265,26664.20499954,6.94e-05,2]
[328615621,1717616073211,4753.52744709,0.00014,2]
[328615622,1717616075788,398.74185088,0.00014,2]
[328615623,1717616077693,180.5825281,0.00014,2]
[328615624,1717616103706,181.57270536,0.00014,2]
[328615632,1717616263615,24192.91163903,0.00014,2]
[328615637,1717616678116,-941.67693938,0.00016489,2]
[328615638,1717616680480,194.32306062,0.0001639,2]
[328615639,1717616739185,-475.489414,0.00016305,2]
[328615640,1717616739207,-901.06156564,0.00016387,2]
[328615641,1717616817109,-226.57446144,0.0001628,2]
[328615642,1717616842102,-506.32296391,0.00016277,2]
[328615643,1717616842123,-81.96857199,0.00016278,2]
[328615645,1717616945118,-1182.56989427,0.00016169,2]
[328615646,1717616945139,-1066.86599008,0.0001617,2]
[328615647,1717616945161,-862.13999275,0.0001617,2]
[328615648,1717616945182,-195.60497769,0.00016171,2]
[328615649,1717616945205,-155.0,0.00016171,2]
[328615650,1717616945229,-7534.86291177,0.00016171,2]
[328615651,1717616945250,-155.0,0.00016172,2]
[328615652,1717616945270,-2334.89595111,0.00016172,2]
[328615653,1717616945290,-407.27221683,0.00016172,2]
[328615654,1717616945310,-176.371291,0.00016172,2]
[328615655,1717616945329,-10919.39088392,0.00016173,2]
[328615656,1717616952093,-208.03390212,0.00016171,2]
[328615657,1717616952115,-18657.52220897,0.00016173,2]
[328615658,1717616952137,-150.0,0.00016274,2]
[328615659,1717616952158,-5035.74408843,0.00016277,2]
[328615660,1717616952184,-34960.32497323,0.00016278,2]
[328615661,1717616952205,-50124.26504289,0.00016278,2]
[328615662,1717616952226,-296.58359376,0.00016279,2]
[328615663,1717616952246,-399.12986961,0.0001628,2]
[328615664,1717616952266,-170.36410335,0.00016286,2]
[328615665,1717616952286,-2037.3,0.00016286,2]
[328615666,1717616952306,-629.88,0.00016371,3]
[328615667,1717616952326,-8415.28893931,0.00016381,2]
[328615668,1717616952346,-3063.72776014,0.00016382,2]
[328615669,1717616952368,-3100.04,0.00016382,2]
[328615670,1717616952389,-2865.18551819,0.00016382,2]
[328615671,1717616953115,-1409.05448181,0.00016382,2]
[328615672,1717616953134,-821.24,0.00016382,2]
[328615673,1717616953155,-184.58,0.00016383,2]
[328615674,1717616953176,-1900.16906214,0.00017156,2]
[328615675,1717616953195,-2368.84886765,0.00017157,2]
[328615676,1717616953213,-499.99,0.00017157,2]
[328615677,1717616953232,-150.99,0.00017158,2]
[328615678,1717616953251,-2480.40873593,0.00017159,2]
[328615679,1717616956154,-6889.0975,0.00016172,2]
[328615680,1717616959151,-3863.2934,0.00016172,2]
[328615689,1717616962120,-1794.28590216,0.00016171,2]
[328615690,1717616962143,-216.17248147,0.00016172,2]
[328615691,1717616962167,-8415.28893931,0.00016172,2]
[328615692,1717616962190,-3044.58016407,0.00017159,2]
[328615693,1717616962213,-363.01539118,0.00017259,2]
[328615694,1717616962235,-200.1588644,0.00017259,2]
[328615695,1717616962261,-35.97625741,0.0001726,2]
[328615696,1717616966156,-11332.88321043,0.00016278,2]
[328615697,1717616966179,-931.11374259,0.0001726,2]
[328615698,1717616966203,-210.0,0.00017901,2]
[328615699,1717616966226,-159.88,0.0001868,2]
[328615700,1717616966249,-167.45,0.00018915,2]
[328615701,1717616966272,-299.99,0.00019199,4]
[328615702,1717616966491,-3890.25994623,0.000192,2]
[328615703,1717616966515,-3890.25994623,0.000192,2]
[328615704,1717616966536,-293.0,0.00019692,2]
[328615705,1717616966556,-226.57668191,0.000201,2]
[328615706,1717616966578,-1310.46,0.00020782,2]
[328615707,1717616966598,-519.73,0.00020816,2]
[328615708,1717616966618,-1825.0,0.000209,3]
[328615709,1717616966639,-661.0,0.000209,3]
[328615710,1717616966661,-162.09,0.00021011,2]
[328615711,1717616966683,-1000.0,0.00021395,2]
[328615712,1717616966708,-611.95,0.00021396,2]
[328615713,1717617018704,10737.61900335,0.00021381,2]
[328615716,1717617031969,-2268.68775,0.00021381,2]
[328615717,1717617031980,-8439.89297998,0.00021381,2]
[328615718,1717617031991,-740.58240107,0.00021381,2]
[328615719,1717617032001,-500.53973003,0.00021381,2]
[328615720,1717617032012,-450.20840185,0.00021381,2]
[328615721,1717617032028,-25801.19571769,0.00021381,2]
[328615722,1717617032049,-13488.2682387,0.00021381,2]
[328615723,1717617032060,-1581.72744129,0.00021381,2]
[328615724,1717617032073,-1047.0,0.00021381,2]
[328615725,1717617032085,-4654.44,0.00021381,2]
[328615726,1717617032103,-14307.37959499,0.00021381,2]
[328615727,1717617032114,-4203.55193141,0.00021381,2]
[328615728,1717617032177,-3557.38833918,0.00021381,2]
[328615729,1717617032211,-566.55211337,0.00021381,2]
[328615730,1717617032222,-392.22189779,0.00021381,2]
[328615731,1717617032232,-1728.96439159,0.000225,2]
[328615732,1717617032241,-328.91,0.00022583,2]
[328615733,1717617032250,-800.0,0.00022806,2]
[328615734,1717617032260,-2264.38856054,0.000229,5]
[328615735,1717617032269,-499.99,0.000229,2]
[328615736,1717617032278,-8874.89580332,0.0002303,2]
[328615737,1717617032293,-1430.47419668,0.0002303,2]
[328615738,1717617032303,-1931.36580322,0.00023139,2]
[328615739,1717617032314,-1385.6,0.00023139,2]
[328615740,1717617032326,-995.87545876,0.00023139,2]
[328615763,1717617037978,-464.51322832,0.00023139,2]
[328615769,1717617038034,-263.8,0.00023139,2]
[328615777,1717617038095,-432.5955097,0.00023139,2]
[328615779,1717617038104,-22945.4981722,0.0002335,2]
[328615781,1717617038118,-954.5018278,0.0002335,2]
[328615783,1717617038127,-1310.46,0.00023522,2]
[328615785,1717617038136,-6192.8767703,0.000236,2]
[328615789,1717617038203,-3868.40000009,0.000236,2]
[328615790,1717617038214,-3818.48700272,0.000236,2]
[328615808,1717617038497,-332.5,0.000236,2]
[328615817,1717617040693,-2093.83664338,0.000236,2]
[328615818,1717617040916,-1200.2654025,0.000236,2]
[328615819,1717617040939,-9454.5089598,0.000236,2]
[328615820,1717617041025,-380.43487415,0.000236,2]
[328615821,1717617041837,-1408.02620954,0.000236,2]
[328615851,1717617043104,-9310.92905495,0.000236,2]
[328615853,1717617043114,-611.95,0.0002366,2]
[328615855,1717617043124,-659.16,0.00023867,2]
[328615858,1717617043133,-927.57917371,0.00024,3]
[328615861,1717617043145,-737.57216548,0.00024,3]
[328615866,1717617043160,-2280.05080193,0.00024,3]
[328615893,1717617043491,-364.67036088,0.00024,3]
[328615894,1717617043502,-2682.07750126,0.00024,3]
[328615895,1717617043513,-1433.31731692,0.00024,3]
[328615896,1717617043646,-152.9501089,0.00024,3]
[328615908,1717617046264,-475.24593431,0.00024,3]
[328615909,1717617046277,-2026.10049332,0.00024,3]
[328615910,1717617046285,-278.25,0.00024384,2]
[328615911,1717617046295,-215.79,0.00024384,2]
[328615912,1717617046305,-365.91851759,0.00024799,2]
[328615913,1717617046315,-365.91851756,0.00024799,2]
[328615914,1717617046324,-365.91851756,0.00024799,2]
[328615915,1717617046333,-1130.29153536,0.000248,3]
[328615916,1717617046353,-4435.79394895,0.000248,3]
[328615917,1717617046526,-1093.91451569,0.000248,3]
[328615918,1717617046536,-256.58991772,0.00025,2]
[328615919,1717617046545,-200.0,0.00025029,2]
[328615920,1717617046557,-365.91851756,0.00025326,2]
[328615921,1717617046567,-11733.0,0.000254,5]
[328615922,1717617046576,-800.0,0.00025657,2]
[328615923,1717617046586,-464.73861163,0.00025814,2]
[328615924,1717617046595,-250.0,0.00025914,2]
[328615925,1717617046604,-611.95,0.00025924,2]
[328615926,1717617046613,-365.91851756,0.00026088,2]
[328615927,1717617046622,-154.2,0.00026164,2]
[328615928,1717617046631,-1310.46,0.00026262,2]
[328615929,1717617046640,-464.73861161,0.00026268,2]
[328615930,1717617046649,-154.2,0.00026334,2]
[328615931,1717617046659,-154.2,0.00026505,2]
[328615932,1717617046668,-154.2,0.00026675,2]
[328615933,1717617046679,-452.89746239,0.00026698,2]
[328615934,1717617046688,-464.73861161,0.00026722,2]
[328615935,1717617046697,-154.2,0.00026846,2]
[328615936,1717617046706,-365.91851756,0.00026851,2]
[328615937,1717617046715,-752.05039497,0.00026998,2]
[328615938,1717617046725,-625.70433105,0.00027015,2]
[328615939,1717617046734,-154.2,0.00027016,2]
[328615940,1717617046743,-464.73861161,0.00027176,2]
[328615941,1717617046752,-154.2,0.00027186,2]
[328615942,1717617046765,-2010.60105363,0.000272,2]
[328615943,1717617046775,-941.67693938,0.00027296,2]
[328615944,1717617046784,-154.2,0.00027357,2]
[328615945,1717617046794,-518.62414497,0.00027397,4]
[328615946,1717617046803,-155.92670302,0.00027397,4]
[328615947,1717617046813,-166.55443567,0.00027397,4]
[328615948,1717617046822,-364.27003264,0.00027397,4]
[328615949,1717617046862,-42.84699521,0.00027397,4]
[328615950,1717617046873,-92.88297215,0.00027397,4]
[328615951,1717617046882,-220.89228517,0.00027397,4]
[328615957,1717617158852,2000.3,0.000335,30]
[328615958,1717617260976,250.0,0.000247,7]
[328615959,1717617341826,690.0,0.00033534,30]
[328615970,1717617621848,250.0,0.000247,7]
[328615974,1717618034166,-862.13999275,0.00016085,2]
[328615975,1717618034187,-4808.328854,0.00016086,2]
[328615976,1717618034208,-263.62581916,0.00016166,2]
[328615977,1717618034229,-155.0,0.00016166,2]
[328615978,1717618034250,-60.14816559,0.00016167,2]
[328615979,1717618047114,-2334.89595111,0.00016083,2]
[328615980,1717618047138,-542.47257819,0.00016083,2]
[328615981,1717618047158,-3098.55907664,0.00016084,2]
[328615982,1717618047178,-108.23768702,0.00016167,2]
[328615983,1717618047198,-688.181864,0.00016167,2]
[328615984,1717618047218,-8415.28893931,0.00016167,2]
[328615985,1717618047241,-1353.82372285,0.00016167,2]
[328615987,1717618151128,-1196.29490948,0.00016075,2]
[328615988,1717618151151,-150.0,0.00016076,2]
[328615989,1717618151173,-537.34426648,0.00016076,2]
[328615990,1717618151192,-4440.92771501,0.00016076,2]
[328615991,1717618151213,-625.70433105,0.00016077,2]
[328615992,1717618151236,-1066.86599008,0.00016077,2]
[328615993,1717618151258,-1248.31846585,0.00016078,2]
[328615994,1717618151280,-10530.78040028,0.00016078,2]
[328615995,1717618151302,-10968.56338147,0.00016078,2]
[328615996,1717618151323,-7534.86291177,0.00016163,2]
[328615997,1717618151342,-1182.56989427,0.00016164,2]
[328615998,1717618151362,-155.0,0.00016167,2]
[328615999,1717618151383,-197.42684078,0.00016346,2]
[328616000,1717618151403,-499.99,0.00017149,2]
[328616001,1717618151424,-177.53,0.00017149,2]
[328616002,1717618151445,-35459.35989058,0.00017165,2]
[328616003,1717618151466,-150.99,0.00017165,2]
[328616004,1717618151486,-10609.84,0.00017165,2]
[328616005,1717618151507,-7537.31948195,0.00017166,2]
[328616006,1717618151528,-38855.98514356,0.00017166,2]
[328616007,1717618151553,-7815.02485644,0.00017166,2]
[328616008,1717618151573,-767.76,0.00017524,3]
[328616009,1717618151593,-159.88,0.00017719,2]
[328616010,1717618151613,-167.97,0.00017904,2]
[328616011,1717618151633,-3890.25994623,0.00019451,2]
[328616012,1717618151653,-697.0,0.000209,3]
[328616013,1717618151673,-1990.0,0.000209,3]
[328616014,1717618151695,-721.32,0.00021119,2]
[328616015,1717618151716,-21512.35,0.00021483,2]
[328616016,1717618151737,-150.0,0.00022249,2]
[328616017,1717618151757,-250.0,0.00022353,2]
[328616018,1717618151777,-1351.15,0.00022417,2]
[328616019,1717618151798,-11276.04,0.00022745,2]
[328616020,1717618151820,-904.0,0.00022877,2]
[328616021,1717618151843,-4472.55,0.00022954,2]
[328616022,1717618151865,-260.76,0.00023265,2]
[328616023,1717618151885,-724.68,0.00023352,2]
[328616024,1717618151905,-721.32,0.00023383,2]
[328616025,1717618151927,-154.2,0.00023389,2]
[328616026,1717618151947,-319.04,0.00023417,2]
[328616027,1717618151984,296.58359376,0.00016075,2]
[328616028,1717618159009,-11435.36973596,0.00024006,2]
[328616029,1717618161120,-888.04026404,0.00024006,2]
[328616030,1717618161140,-46.20656972,0.0002423,2]
[328616031,1717618163992,19544.31591975,0.00017259,2]
[328616032,1717618167225,155.0,0.00016167,2]
[328616033,1717618168200,-133.79343028,0.0002423,2]
[328616034,1717618168220,-163.2,0.00024384,2]
[328616035,1717618168243,-1953.97046184,0.00024798,2]
[328616036,1717618168265,-1953.97046175,0.00024798,2]